Cogmind - Beta 11 @@@ ROGUE MODE // 2022.04.07 @ 21:01:25 Player: Finestep Result: Destroyed by H-77 Assassin with Coil Gun Performance ------------- Evolutions (6) 3000 Regions Visited (19) 3800 Robots Destroyed (387) 1935 Value Destroyed (13195) 13195 Prototype IDs (43) 860 Alien Tech Used (0) 0 Bonus (4966) 4966 TOTAL SCORE: 27756 Bonus ------- High Alert Combat Kills 1798 Follower Combat Kills 2208 Network Hubs Disabled 600 Met Data Miner 300 Met Imprinter 300 A7 Reached Mainframe 300 Met R17 at Cetus 500 Friendly Fire -1040 Cogmind --------- Core Integrity 0/1150 Matter 286/300 Energy 150/150 System Corruption 4% Temperature Cool (0) Movement Core (50) Location -4/Factory Parts ------- > --- POWER (2) -------- Micro Fission Core > --- PROPULSION (4) --- Armored Medium Treads Advanced VSS Leg > --- UTILITY (10) ----- Gravity Neutralizer Advanced Trap Scanner Improved Terrain Scan Processor Salvage Targeting Computer Experimental Hacking Suite > --- WEAPON (3) ------- (None) > --- INVENTORY (5) ---- Experimental EM Disruption Field Hacking Drone Bay (1/1) Peak State ------------ > --- POWER ------------ Reinforced Fission Core Quantum Reactor > --- PROPULSION ------- Armored Medium Treads Armored Medium Treads Centrium Heavy Treads > --- UTILITY ---------- Experimental Heat Sink Large Storage Unit Advanced Terrain Scan Processor Experimental Targeting Computer Core Analyzer Experimental Phase Shifter Centrium Medium Armor Plating Medium Regenerative Plating > --- WEAPON ----------- EMDS Advanced KE Penetrator > --- INVENTORY -------- Armored Medium Treads Armored Medium Treads Energy Well Matter Compressor Advanced Terrain Scanner Transport Network Coupler Tactical Coordination Suite Precision Matter Filter Transmission Jammer Experimental Phase Shifter Experimental EM Disruption Field High-powered Tractor Beam Hacking Drone Bay Advanced EMP Blaster Advanced EMP Blaster [Rating: 129] Favorites ----------- Power Micro Nuclear Core Engine Reinforced Deuterium Engine Power Core Micro Nuclear Core Reactor Light Antimatter Reactor Propulsion Medium Treads Treads Medium Treads Leg Improved Aluminum Leg Wheel Armored Wheel Utility Large Storage Unit Device Tactical Coordination Suite Storage Large Storage Unit Processor Core Analyzer Hackware Improved Hacking Suite Protection Makeshift Armor Plating Weapon Heavy Machine Gun Energy Gun Heavy Riot Gun Energy Cannon EMDS Ballistic Gun Heavy Machine Gun Ballistic Cannon Advanced Assault Cannon Launcher Advanced EMP Blaster Special Weapon Mining Laser Impact Weapon Flail Special Melee Weapon Advanced Datajack Build | -11 -10 -9 -8 -7 -7 -7 -7 -6 -6 -6 -6 -6 -5 -5 -5 -5 -5 -5 -4 ------- Run | Scr Mat Mat Mat Fac Low Low Zio Pro Fac Low Low Dat Pro Fac Ext Cet Arc Hub Fac Slots Evolved 12 | . . 2 2 2 . . . . 2 . . . . 2 . . . . 2 Power 1 | . . . . 1 . . . . . . . . . . . . . . . Propulsion 2 | . . 1 . . . . . . . . . . . 1 . . . . . Utility 8 | . . 1 1 1 . . . . 2 . . . . 1 . . . . 2 Weapon 1 | . . . 1 . . . . . . . . . . . . . . . . Parts Attached 326 | 7 15 42 23 27 8 6 5 . 24 7 16 3 2 33 19 8 10 38 33 Power 29 | 1 . 7 4 3 2 . . . 1 1 . . . 4 2 2 . 1 1 Engine 12 | 1 . 6 2 . 1 . . . . 1 . . . . 1 . . . . Core 13 | . . 1 2 3 1 . . . . . . . . 4 1 . . . 1 Reactor 4 | . . . . . . . . . 1 . . . . . . 2 . 1 . Propulsion 53 | 2 6 14 7 8 1 1 . . . . 3 . . 3 . . . 4 4 Treads 37 | . 2 6 7 8 1 1 . . . . 3 . . 2 . . . 4 3 Leg 15 | 2 4 8 . . . . . . . . . . . . . . . . 1 Wheel 1 | . . . . . . . . . . . . . . 1 . . . . . Hover . | . . . . . . . . . . . . . . . . . . . . Flight . | . . . . . . . . . . . . . . . . . . . . Utility 161 | 2 3 10 6 10 4 1 4 . 20 6 9 . 2 16 13 3 6 26 20 Device 92 | 1 . 1 3 5 2 . 1 . 15 5 8 . 2 13 4 2 5 15 10 Storage 12 | 1 2 1 . 1 . . . . . . . . . . 1 . . 2 4 Processor 9 | . 1 . . 3 1 . . . . . . . . . . . . 1 3 Hackware 4 | . . . 1 . . . . . 1 . . . . . . . . 1 1 Protection 44 | . . 8 2 1 1 1 3 . 4 1 1 . . 3 8 1 1 7 2 Artifact . | . . . . . . . . . . . . . . . . . . . . Weapon 83 | 2 6 11 6 6 1 4 1 . 3 . 4 3 . 10 4 3 4 7 8 Energy Gun 4 | . . 2 . . 1 1 . . . . . . . . . . . . . Energy Cannon 1 | . . . . . . . . . . . . . . . . . . 1 . Ballistic Gun 54 | 2 5 8 4 4 . . 1 . 2 . 4 3 . 5 3 2 4 6 1 Ballistic Cannon 4 | . . . . 1 . 1 . . 1 . . . . . . . . . 1 Launcher 12 | . . 1 2 1 . . . . . . . . . 1 1 1 . . 5 Special Weapon 1 | . 1 . . . . . . . . . . . . . . . . . . Impact Weapon 6 | . . . . . . 2 . . . . . . . 4 . . . . . Slashing Weapon . | . . . . . . . . . . . . . . . . . . . . Piercing Weapon . | . . . . . . . . . . . . . . . . . . . . Special Melee Weapon 1 | . . . . . . . . . . . . . . . . . . . 1 Unidentified Prototypes 17 | . . 4 1 1 . . . . 1 . . . . . 1 1 1 5 2 Corrupted Parts 5 | . . . . . . . . . . . . . . . . . 2 2 1 System Corruption 36 | . . . . . . . . . . . . . . . . . 17 16 3 Parts Lost 40 | . . 4 1 2 . 2 . . . 1 1 . . . . 1 . 10 18 Power 5 | . . 1 . . . . . . . 1 . . . . . 1 . 1 1 Propulsion 9 | . . 1 . 1 . 1 . . . . 1 . . . . . . 2 3 Utility 15 | . . 2 . . . 1 . . . . . . . . . . . 4 8 Weapon 11 | . . . 1 1 . . . . . . . . . . . . . 3 6 Highest Loss Streak 7 | . . 1 1 1 . 2 . . . 1 1 . . . . 1 . 5 7 To Critical Strikes 1 | . . . . . . . . . . . . . . . . . . . 1 Average Slot Usage (%) 94 | . 100 99 91 97 99 99 100 100 99 99 99 82 100 94 87 87 86 86 51 Engine 3 | . 14 9 8 . . . . . . 3 6 6 6 3 1 . . . . Core 6 | . . 1 . 15 15 15 15 15 12 2 . . . 2 8 5 5 4 1 Reactor 1 | . . . . . . . . . . 6 6 6 6 3 . 4 5 5 1 Treads 18 | . 22 11 27 23 23 22 23 23 20 20 20 20 20 15 11 11 11 11 10 Leg 2 | . 5 21 . . . . . . . . . . . . . . . . . Device 12 | . 4 1 8 13 13 7 7 7 20 22 20 20 20 22 17 13 15 14 14 Storage 7 | . 14 11 9 7 7 7 7 7 6 6 6 6 6 5 5 8 5 5 3 Processor 10 | . 9 11 1 6 8 15 15 15 13 13 13 13 13 11 11 11 11 11 6 Protection 7 | . . 8 9 7 7 6 7 7 5 3 5 6 6 5 10 11 11 10 4 Ballistic Gun 16 | . 28 18 27 18 15 15 15 15 10 13 16 2 20 16 17 15 17 15 2 Ballistic Cannon 2 | . . . . 3 . 2 7 7 8 6 3 . . . . . . . 1 Naked Turns 3 | . . . . . . . . . . . . . . . . . . . 3 Heaviest Build 122 | 15 31 41 61 59 57 53 51 51 63 78 73 73 73 85 117 122 103 104 98 Greatest Support 140 | 20 40 60 62 84 84 84 76 76 76 76 86 86 86 140 140 140 140 140 134 Greatest Overweight (x) 2 | . 2 1 1 . . . . . . 1 . . . . . . . 1 2 Average Overweight (x) . | . . . . . . . . . . . . . . . . . . . . Largest Inventory Capacity 20 | 8 15 15 15 15 15 15 15 15 15 15 15 15 15 15 15 15 15 15 20 Average Capacity 14 | 7 14 15 15 15 15 15 15 15 15 15 15 15 15 15 15 15 15 15 12 Most Carried 15 | 5 15 15 15 15 15 15 15 15 15 15 15 15 15 15 15 15 15 15 14 Average Carried 14 | 3 12 14 14 14 14 14 14 15 14 14 14 15 15 14 15 14 15 14 7 Final Capacity 15 | 8 15 15 15 15 15 15 15 15 15 15 15 15 15 15 15 15 15 15 5 Final Carried 15 | 5 15 15 15 15 15 14 15 15 15 15 15 15 15 15 15 15 15 15 2 Class Distribution -------------------- 35% | Mutant 16% | Tank 14% | Scavenger-Gunner 9% | Scavenger-Tank 7% | Scavenger-Mutant 5% | Scavenger-Skirmisher 5% | Gunner 3% | Skirmisher Dominant Class ---------------- Mutant | -10/Materials Mutant | -9/Materials Tank | -8/Materials Scavenger-Gunner | -7/Factory Tank | -7/Lower Caves Mutant | -7/Lower Caves Mutant | -7/Zion Mutant | -6/Proximity Caves Gunner | -6/Factory Scavenger-Skirmisher | -6/Lower Caves Scavenger-Gunner | -6/Lower Caves Scavenger-Mutant | -6/Data Miner Scavenger-Gunner | -5/Proximity Caves Scavenger-Tank | -5/Factory Tank | -5/Extension Scavenger-Tank | -5/Cetus Scavenger-Gunner | -5/Archives Scavenger-Gunner | -5/Hub_04(d) Mutant | -4/Factory Resources | -11 -10 -9 -8 -7 -7 -7 -7 -6 -6 -6 -6 -6 -5 -5 -5 -5 -5 -5 -4 ----------- Run | Scr Mat Mat Mat Fac Low Low Zio Pro Fac Low Low Dat Pro Fac Ext Cet Arc Hub Fac Matter Collected 13266 | 336 496 1373 1209 1422 279 173 256 22 1664 304 499 . 199 807 973 270 528 1844 612 Remotely 997 | . . . . . . . . . 174 . . . . . 185 . 192 446 . Salvage Created 18682 | 137 596 2227 1789 2226 405 157 . . 1607 94 212 . 304 2259 1620 163 726 3032 1128 Parts 974 | 7 41 128 116 127 19 7 . . 87 6 10 . 10 84 64 8 45 171 44 Haulers Intercepted 22 | . 2 6 3 2 . . . . 1 . . . . 1 . . . 6 1 Recyclers Shooed 19 | . 2 1 2 2 . . . . 3 . . . . 3 4 . . . 2 Parts Field Recycled . | . . . . . . . . . . . . . . . . . . . . Retrieved Matter . | . . . . . . . . . . . . . . . . . . . . Parts Self-Destructed 68 | . . . . . 17 7 4 . . 12 17 . 11 . . . . . . Prevented 1 | . . . . . 1 . . . . . . . . . . . . . . Kills | -11 -10 -9 -8 -7 -7 -7 -7 -6 -6 -6 -6 -6 -5 -5 -5 -5 -5 -5 -4 ------- Run | Scr Mat Mat Mat Fac Low Low Zio Pro Fac Low Low Dat Pro Fac Ext Cet Arc Hub Fac Combat Hostiles Destroyed 227 | . 13 41 18 31 8 3 . . 21 3 4 . 5 14 11 3 4 33 15 Guns 182 | . 13 38 18 24 5 3 . . 9 2 3 . 5 9 11 3 4 33 2 Cannons 24 | . . . . 5 3 . . . 12 1 1 . . . . . . . 2 AOE 18 | . . 3 . 2 . . . . . . . . . 5 . . . . 8 Classes Destroyed 20 | 3 5 5 3 2 1 . . . . . . . . . 1 . . . . Worker 36 | 1 1 6 5 6 . . . . 4 . . . . 6 . . . 6 1 Builder 7 | . . 1 . 2 . . . . 2 . . . . 1 . . . 1 . Tunneler 7 | 3 . . 1 1 . . . . . . . . . 1 . . . 1 . Hauler 22 | . 2 6 3 2 . . . . 1 . . . . 1 . . . 6 1 Recycler 40 | 1 1 4 8 4 . . . . 4 . . . . 9 7 . . 1 1 Mechanic 1 | . . . . 1 . . . . . . . . . . . . . . . Operator 21 | . 2 2 2 2 . . . . 3 . . . . . . . 9 1 . Watcher 24 | . 1 5 5 3 . . . . 3 . . . . 2 1 . . 3 1 Swarmer 41 | . 6 12 3 3 . . . . 3 2 1 . 1 . . 1 . 5 4 Grunt 90 | . 7 17 6 16 6 3 . . 7 . 1 . 2 7 3 . . 14 1 Brawler 6 | . . 1 . 1 . . . . . . 1 . 1 1 1 . . . . Duelist 3 | . . 1 . 1 1 . . . . . . . . . . . . . . Protector 2 | . . 1 . . . . . . . . . . . . . . . 1 . Sentry 41 | . . 9 3 4 . . . . 5 1 1 . 1 2 4 . 4 4 3 Specialist 5 | . . . 2 . . . . . . . . . . . . . . 3 . Hunter 18 | . . . 3 3 1 . . . 3 . . . . 2 . . . 1 5 Programmer 15 | . . . . 3 . . . . 3 . 1 . . 2 1 1 . 2 2 Heavy 1 | . . . 1 . . . . . . . . . . . . . . . . Behemoth 1 | . . . . . . . . . . . . . . . 1 . . . . Cetus Guard 1 | . . . . . . . . . . . . . . . . 1 . . . Lightning 3 | . . . . . . . . . . . . . . . . . . 3 . Tinkerer 1 | . . . . . 1 . . . . . . . . . . . . . . Thug 2 | . . . . . . . . . . . . . . . 1 . 1 . . Best Kill Streak 10 | 3 3 7 5 6 4 3 . . 8 2 2 . 3 7 8 1 8 10 7 Combat Bots Only 9 | . 3 5 5 4 4 3 . . 5 2 2 . 3 6 3 1 2 9 5 Max Kills in Single Turn 5 | 1 1 2 1 3 1 1 . . 2 1 1 . 1 3 2 1 2 2 5 Gunslinging . | . . . . . . . . . . . . . . . . . . . . Exploded 4 | . . 2 . 2 . . . . . . . . . 3 . . . . 4 Melee . | . . . . . . . . . . . . . . . . . . . . Uniques/NPCs Destroyed . | . . . . . . . . . . . . . . . . . . . . Combat | -11 -10 -9 -8 -7 -7 -7 -7 -6 -6 -6 -6 -6 -5 -5 -5 -5 -5 -5 -4 -------- Run | Scr Mat Mat Mat Fac Low Low Zio Pro Fac Low Low Dat Pro Fac Ext Cet Arc Hub Fac Damage Taken 17720 | . 410 1875 1031 1800 393 234 . . 1261 87 462 . 123 483 391 246 322 3661 4941 Core 2250 | . 113 203 122 153 13 . . . 88 . 20 . . 35 11 9 . 331 1152 Absorbed by Shields 1595 | . . . 305 373 54 . . . . 9 . . . 281 318 255 . . . Reduced by Siege Mode 343 | . . . . . . . . . . . . . . . . . 7 240 96 Redirected to Shielding 126 | . . . . . 39 . . . . . . . . . . . . . 87 Regen/Repaired (Parts) 1052 | . . 82 . . . . 432 . . . . . . . 123 47 86 241 41 Core Remaining (%) 72 | 100 54 49 77 . . . . 76 . . . . 87 . . . . 61 . Volleys Fired 934 | 11 65 146 93 121 19 7 1 11 91 24 20 . 10 55 55 19 31 103 52 Largest 3 | 2 2 2 3 3 3 3 1 1 3 3 3 . 3 3 3 3 3 3 2 Hottest 124 | 40 100 79 69 100 116 104 48 48 124 104 104 . 90 90 96 96 105 105 88 Shots Fired 2278 | 22 129 285 278 325 51 21 1 11 226 44 49 . 29 161 161 41 93 272 79 Gun 1968 | 22 128 282 278 275 45 14 . . 96 21 31 . 29 159 161 33 93 272 29 Cannon 271 | . . . . 46 6 7 1 11 130 23 18 . . . . . . . 29 Launcher 38 | . . 3 . 4 . . . . . . . . . 2 . 8 . . 21 Special 1 | . 1 . . . . . . . . . . . . . . . . . . Kinetic 2197 | 22 128 247 278 321 44 21 1 11 226 44 49 . 29 159 161 33 93 272 58 Thermal 28 | . 1 27 . . . . . . . . . . . . . . . . . Explosive 3 | . . 3 . . . . . . . . . . . . . . . . . Electromagnetic 50 | . . 8 . 4 7 . . . . . . . . 2 . 8 . . 21 Robot Hit Streak 36 | 5 13 26 36 24 30 13 . . 18 14 13 . 21 16 33 12 23 24 7 Robot Miss Streak 8 | 4 6 3 2 7 3 1 . . 8 5 6 . 2 4 3 2 3 4 6 Penetration Max 1 | . . . . . . . . . 1 . 1 . . . . 1 1 1 . Secondary Targets 18 | . 1 2 . 3 1 . . . . . . . 2 . 2 1 . 6 . Max Gunslinging Chain 1 | . 1 1 . 1 1 . . . . . . . 1 . 1 1 . 1 . Shots Hit Robots 1502 | 11 90 212 191 214 39 14 . . 135 23 35 . 23 104 114 23 61 181 32 Core Hits 783 | 6 34 86 74 104 19 6 . . 85 16 28 . 9 72 43 23 40 98 40 Critical Kills 26 | . . . 1 1 . . . . . . . . . . 1 . 2 19 2 Critical Parts Destroyed 24 | . . 1 1 2 . . . . . . . . . 1 1 . 1 16 1 Critical Strikes 63 | . . 4 3 4 1 . . . 5 . 1 . . 1 2 . 4 35 3 Burn 3 | . . 3 . . . . . . . . . . . . . . . . . Destroy 53 | . . 1 3 3 . . . . 1 . . . . 1 2 . 4 35 3 Blast 7 | . . . . 1 1 . . . 4 . 1 . . . . . . . . Melee Attacks 12 | . . . . . . 3 . . . . . . . 9 . . . . . Impact 12 | . . . . . . 3 . . . . . . . 9 . . . . . Slashing . | . . . . . . . . . . . . . . . . . . . . Piercing . | . . . . . . . . . . . . . . . . . . . . Sneak Attacks . | . . . . . . . . . . . . . . . . . . . . Combat Hostiles . | . . . . . . . . . . . . . . . . . . . . Follow-up Attacks . | . . . . . . . . . . . . . . . . . . . . Damage Inflicted 33971 | 145 1151 3797 2755 4362 788 307 . . 3314 362 690 . 475 3265 2809 1261 1790 4556 2144 Guns 26780 | 145 1143 3304 2755 3194 665 220 . . 1476 288 476 . 475 2582 2773 617 1790 4455 422 Cannons 3129 | . . . . 673 123 87 . . 1635 74 214 . . . . . . . 323 Explosions 3947 | . . 493 . 484 . . . . 180 . . . . 667 . 644 . 101 1378 Melee . | . . . . . . . . . . . . . . . . . . . . Ramming 115 | . 8 . . 11 . . . . 23 . . . . 16 36 . . . 21 Kinetic 29440 | 145 1143 2906 2755 3867 717 307 . . 3111 362 690 . 475 2582 2773 617 1790 4455 745 Thermal 1155 | . . 419 . 133 . . . . . . . . . 392 . 58 . . 153 Explosive 805 | . . 384 . . . . . . 180 . . . . . . . . . 241 Electromagnetic 2456 | . . 88 . 351 71 . . . . . . . . 275 . 586 . 101 984 Impact . | . . . . . . . . . . . . . . . . . . . . Slashing . | . . . . . . . . . . . . . . . . . . . . Piercing . | . . . . . . . . . . . . . . . . . . . . Highest Corruption 33 | . 2 1 . 4 . . . . 1 1 2 2 2 . . 1 18 33 4 Average Corruption 2 | . 1 1 . 3 . . . . 1 1 1 2 2 . . 1 7 9 3 Corruption Purged 17 | . . . . 4 . . . . . . . . . . . . 13 . . Corruption Blocked . | . . . . . . . . . . . . . . . . . . . . Effects 135 | . 5 20 . 13 . . . . 10 10 12 3 8 . . . 13 38 3 Message Errors 35 | . 3 6 . 3 . . . . 1 4 2 1 3 . . . 3 7 2 Matter Fused 30 | . . 5 . 1 . . . . 5 2 2 1 1 . . . 2 10 1 Heat Flow Errors 18 | . . 2 . 2 . . . . 3 . 2 . . . . . 3 6 . Energy Discharges 19 | . . 4 . 3 . . . . 1 1 1 1 1 . . . 2 5 . Parts Rejected 1 | . . 1 . . . . . . . . . . . . . . . . . Data Loss (minor) 10 | . 1 . . 1 . . . . . 2 1 . . . . . 2 3 . Data Loss (major) 11 | . 1 1 . 1 . . . . . 1 3 . . . . . 1 3 . Misfires 3 | . . 1 . . . . . . . . 1 . . . . . . 1 . Alerts 2 | . . . . . . . . . . . . . 2 . . . . . . Weapon Failures 6 | . . . . 2 . . . . . . . . 1 . . . . 3 . Overload Shots . | . . . . . . . . . . . . . . . . . . . . Overflow Damage 197 | . . 45 . 53 . . . . 81 . . . . . 6 . . . 12 Projectiles 107 | . . . . 24 . . . . 81 . . . . . . . . . 2 Explosions 84 | . . 45 . 29 . . . . . . . . . . . . . . 10 Melee 6 | . . . . . . . . . . . . . . . 6 . . . . Knockbacks 24 | . . . . 5 2 2 . . 11 . 1 . . . . . . . 3 Impact . | . . . . . . . . . . . . . . . . . . . . Kinetic 23 | . . . . 5 2 2 . . 10 . 1 . . . . . . . 3 Secondary 1 | . . . . . . . . . 1 . . . . . . . . . . Self-Inflicted Damage 207 | . . . . . . . . . . . . . . . . 49 . 122 36 Shots 7 | . . . . . . . . . . . . . . . . 2 . 2 3 Rammed 13 | . 2 . . 1 . . . . 2 . . . . 2 1 . . . 5 Targets Rammed 14 | . 2 1 . 1 . . . . 2 . . . . 2 1 . . . 5 Kicked . | . . . . . . . . . . . . . . . . . . . . Crushed 1 | . . 1 . . . . . . . . . . . . . . . . . Highest Temperature 488 | . 20 234 153 379 169 488 18 108 352 261 328 . 95 256 266 258 276 346 18 Average Temperature 79 | . 6 34 24 115 77 254 11 41 59 72 91 . 39 88 75 104 101 78 9 Received Heat Transfer 2854 | . 171 549 140 491 168 162 . . 282 13 36 . 36 122 75 8 27 342 232 Effects 33 | . . . . 6 . 8 . . 7 . 4 . . 1 4 1 . 2 . Shutdowns 4 | . . . . 1 . 1 . . 1 . 1 . . . . . . . . Energy Bleed 6 | . . . . . . 2 . . . . 2 . . . 1 1 . . . Interference 20 | . . . . 4 . 3 . . 6 . 1 . . 1 3 . . 2 . Matter Decay 1 | . . . . . . 1 . . . . . . . . . . . . . Damage (minor) 1 | . . . . 1 . . . . . . . . . . . . . . . Damage (major) 1 | . . . . . . 1 . . . . . . . . . . . . . Siege Activations 13 | . . . . . . . . . . . . . . . . . 4 7 2 Total Turns 264 | . . . . . . . . . . . . . . . . . 78 146 40 Longest Duration 48 | . . . . . . . . . . . . . . . . . 40 48 25 Robots Corrupted 4 | . . 1 . . . . . . . . . . . . . . . . 3 Combat Hostiles 3 | . . . . . . . . . . . . . . . . . . . 3 Parts Fried 11 | . . 1 . 1 . . . . . . . . . 1 . . . 1 7 Impact Corruptions 1 | . . . . . . . . . . . . . . . 1 . . . . Robots Melted . | . . . . . . . . . . . . . . . . . . . . Combat Hostiles . | . . . . . . . . . . . . . . . . . . . . Parts Melted 4 | . . . . . . . . . . . . . . . 3 1 . . . Heat Transferred 1738 | . . 988 . 150 . . . . . . . . . 400 . 100 . . 100 Parts Sabotaged . | . . . . . . . . . . . . . . . . . . . . Parts Stolen . | . . . . . . . . . . . . . . . . . . . . Parts Stripped . | . . . . . . . . . . . . . . . . . . . . Power Chain Reactions 9 | . . . . 3 . . . . . . . . . 3 . 1 . 2 . Missiles Intercepted . | . . . . . . . . . . . . . . . . . . . . Alert | -11 -10 -9 -8 -7 -7 -7 -7 -6 -6 -6 -6 -6 -5 -5 -5 -5 -5 -5 -4 ------- Run | Scr Mat Mat Mat Fac Low Low Zio Pro Fac Low Low Dat Pro Fac Ext Cet Arc Hub Fac Peak Influence 1540 | 25 288 748 495 1097 . . . . 542 . . . . 562 511 649 472 981 1540 Initial 455 | . 16 76 315 81 . . . . . . . . . . 250 135 251 95 455 Average 356 | 7 113 394 183 709 . . . . 226 . . . . 220 278 451 351 433 850 Maximum Alert Level 4 | . 1 3 2 3 . . . . 2 . . . . 2 2 2 2 3 4 Low Security (%) 36 | 100 93 25 70 5 . . . . 51 . . . . 55 29 10 . 11 . Level 1 24 | . 6 14 15 3 . . . . 32 . . . . 22 64 19 66 33 . Level 2 28 | . . 57 13 28 . . . . 16 . . . . 21 6 69 33 42 39 Level 3 9 | . . 2 . 61 . . . . . . . . . . . . . 11 29 Level 4 1 | . . . . . . . . . . . . . . . . . . . 31 Level 5 . | . . . . . . . . . . . . . . . . . . . . High Security . | . . . . . . . . . . . . . . . . . . . . Max Security . | . . . . . . . . . . . . . . . . . . . . Squads Dispatched 64 | . 3 10 4 10 . . . . 13 . . . . 4 . . . 12 8 Investigation 21 | . 1 4 1 4 . . . . 5 . . . . 1 . . . 4 1 Extermination 10 | . . . . 2 . . . . 3 . . . . 2 . . . 1 2 Reinforcement 21 | . 2 3 3 2 . . . . 2 . . . . 1 . . . 4 4 Assault 8 | . . 3 . 1 . . . . . . . . . . . . . 3 1 Garrison 4 | . . . . 1 . . . . 3 . . . . . . . . . . Intercept . | . . . . . . . . . . . . . . . . . . . . Searches Triggered . | . . . . . . . . . . . . . . . . . . . . Data Miner Redirects 5 | . . . . . . . . . . . . . . . . . . 3 2 Construction Impeded 3 | . . . . 1 . . . . 1 . . . . . . . . . 1 Haulers Reinforced 2 | . . . . . . . . . . . . . . . . . . 1 1 Active Scanning Responses . | . . . . . . . . . . . . . . . . . . . . Cargo Convoy Interrupts . | . . . . . . . . . . . . . . . . . . . . Stealth | -11 -10 -9 -8 -7 -7 -7 -7 -6 -6 -6 -6 -6 -5 -5 -5 -5 -5 -5 -4 --------- Run | Scr Mat Mat Mat Fac Low Low Zio Pro Fac Low Low Dat Pro Fac Ext Cet Arc Hub Fac Distress Signals 19 | . 2 5 2 1 . . . . 1 . . . . 1 2 2 . 3 . Communications Jammed 33 | . . . . . . . . . 1 . . . . 17 . . . 15 . Distress Signals 33 | . . . . . . . . . 1 . . . . 17 . . . 15 . Times Spotted 395 | . 24 76 29 43 8 3 . . 27 7 10 . 6 28 24 19 14 41 36 Peak Tracking Total 11 | . 4 9 4 5 4 3 . . 7 3 3 . 3 6 3 6 1 6 11 Tactical Retreats 25 | . 1 9 . 3 . . . . . . . . 1 . 1 . . . 10 Traps | -11 -10 -9 -8 -7 -7 -7 -7 -6 -6 -6 -6 -6 -5 -5 -5 -5 -5 -5 -4 ------- Run | Scr Mat Mat Mat Fac Low Low Zio Pro Fac Low Low Dat Pro Fac Ext Cet Arc Hub Fac Traps Triggered 14 | . 1 2 . 2 . . . . 2 . . . . . 2 . . 5 . Indirectly . | . . . . . . . . . . . . . . . . . . . . Trap Hack Attempts . | . . . . . . . . . . . . . . . . . . . . Triggered . | . . . . . . . . . . . . . . . . . . . . Disarmed . | . . . . . . . . . . . . . . . . . . . . Reprogrammed . | . . . . . . . . . . . . . . . . . . . . Reused . | . . . . . . . . . . . . . . . . . . . . Traps Extracted . | . . . . . . . . . . . . . . . . . . . . Installed . | . . . . . . . . . . . . . . . . . . . . Triggered . | . . . . . . . . . . . . . . . . . . . . Machines | -11 -10 -9 -8 -7 -7 -7 -7 -6 -6 -6 -6 -6 -5 -5 -5 -5 -5 -5 -4 ---------- Run | Scr Mat Mat Mat Fac Low Low Zio Pro Fac Low Low Dat Pro Fac Ext Cet Arc Hub Fac Machines Disabled 58 | . 1 3 2 7 . . . . 5 1 . . . 1 5 3 5 11 14 Max in Single Turn 6 | . 1 1 1 3 . . . . 3 1 . . . 1 1 . 1 6 4 Garrison Access 4 | . . . . 1 . . . . . . . . . 1 . . . 1 1 Network Hub 3 | . . . . . . . . . . . . . . . . . . 3 . Machines Sabotaged 2 | . . . . . . . . . . . . . . . . . . 2 . Garrisons Compromised . | . . . . . . . . . . . . . . . . . . . . Overloaded Fab Kills . | . . . . . . . . . . . . . . . . . . . . Hacking | -11 -10 -9 -8 -7 -7 -7 -7 -6 -6 -6 -6 -6 -5 -5 -5 -5 -5 -5 -4 --------- Run | Scr Mat Mat Mat Fac Low Low Zio Pro Fac Low Low Dat Pro Fac Ext Cet Arc Hub Fac Machines Accessed 77 | . 8 14 9 6 . 1 1 . 12 . 1 4 . 5 3 1 . 6 6 Terminals 45 | . 6 9 8 1 . . . . 6 . . . . 3 3 1 . 6 2 Fabricators 5 | . . . . 1 . . . . 2 . . . . . . . . . 2 Repair Stations 4 | . . 2 . 1 . . . . 1 . . . . . . . . . . Recycling Units 6 | . 2 2 . 2 . . . . . . . . . . . . . . . Scanalyzers 7 | . . 1 1 . . . . . 3 . . . . 1 . . . . 1 Garrison Access 3 | . . . . 1 . . . . . . . . . 1 . . . . 1 Total Hacks 261 | . 27 45 33 15 . 1 7 . 38 . 1 28 . 10 14 3 . 16 23 Successful 150 | . 11 23 22 7 . 1 7 . 16 . 1 28 . 6 9 1 . 5 13 Failed 110 | . 15 22 11 8 . . . . 22 . . . . 4 5 2 . 11 10 Catastrophic 19 | . . 6 1 2 . . . . 3 . . . . 1 2 . . 1 3 Database Lockouts 1 | . 1 . . . . . . . . . . . . . . . . . . Manual 123 | . 9 19 21 7 . . . . 27 . . . . 6 9 . . 12 13 Terminals 150 | . 20 28 30 1 . . . . 19 . . . . 7 14 3 . 16 12 Fabricators 18 | . . . . 3 . . . . 9 . . . . . . . . . 6 Repair Stations 15 | . . 8 . 3 . . . . 4 . . . . . . . . . . Recycling Units 21 | . 7 7 . 7 . . . . . . . . . . . . . . . Scanalyzers 14 | . . 2 3 . . . . . 6 . . . . 1 . . . . 2 Garrison Access 6 | . . . . 1 . . . . . . . . . 2 . . . . 3 Terminal Hacks 93 | . 8 12 15 . . 1 7 . 6 . 1 28 . 2 5 1 . 2 5 Record 11 | . . . . . . . . . . . . 11 . . . . . . . Part Schematic 16 | . 1 . . . . . 7 . . . . 8 . . . . . . . Robot Schematic 8 | . . 1 1 . . . . . . . . 6 . . . . . . . Robot Analysis 3 | . . 2 1 . . . . . . . . . . . . . . . . Prototype ID Bank 10 | . . 2 2 . . . . . 1 . . 3 . . 1 . . . 1 Open Door 4 | . . . . . . 1 . . . . 1 . . 1 . 1 . . . Level Access Points 1 | . . . . . . . . . . . . . . . . . . 1 . Branch Access Points 4 | . . 1 1 . . . . . 1 . . . . . . . . . 1 Machine Index 1 | . . . . . . . . . . . . . . . . . . . 1 Terminal Index 1 | . 1 . . . . . . . . . . . . . . . . . . Fabricator Index 1 | . . . . . . . . . 1 . . . . . . . . . . Repair Station Index 1 | . 1 . . . . . . . . . . . . . . . . . . Unreport Threat 9 | . . 3 3 . . . . . . . . . . . 2 . . 1 . Locate Traps 6 | . 2 1 1 . . . . . . . . . . . 1 . . . 1 Patrol Status 1 | . 1 . . . . . . . . . . . . . . . . . . Transport Status 2 | . 1 . 1 . . . . . . . . . . . . . . . . Recall Investigation 2 | . . . 1 . . . . . 1 . . . . . . . . . . Hauler Manifests 4 | . . 1 1 . . . . . 1 . . . . . 1 . . . . Registered Components 2 | . . . 1 . . . . . . . . . . 1 . . . . . Registered Prototypes 1 | . . 1 . . . . . . . . . . . . . . . . . Zone Layout 5 | . 1 . 2 . . . . . 1 . . . . . . . . . 1 Fabricator Hacks 2 | . . . . . . . . . 2 . . . . . . . . . . Load Schematic 1 | . . . . . . . . . 1 . . . . . . . . . . Build 1 | . . . . . . . . . 1 . . . . . . . . . . Repair Station Hacks 6 | . . 5 . 1 . . . . . . . . . . . . . . . Scan Component 4 | . . 3 . 1 . . . . . . . . . . . . . . . Repair 2 | . . 2 . . . . . . . . . . . . . . . . . Recycling Unit Hacks 4 | . 1 1 . 2 . . . . . . . . . . . . . . . Retrieve Components 4 | . 1 1 . 2 . . . . . . . . . . . . . . . Scanalyzer 7 | . . 2 3 . . . . . . . . . . . . . . . 2 Insert Component 3 | . . 1 1 . . . . . . . . . . . . . . . 1 Analyze 4 | . . 1 2 . . . . . . . . . . . . . . . 1 Garrison Access Hacks 1 | . . . . . . . . . . . . . . 1 . . . . . Seal Access 1 | . . . . . . . . . . . . . . 1 . . . . . Unauthorized Hacks 37 | . 2 3 4 4 . . . . 8 . . . . 3 4 . . 3 6 Terminals 20 | . 2 1 4 . . . . . 3 . . . . 2 4 . . 3 1 Track 3 | . 1 . 2 . . . . . . . . . . . . . . . . Botnet 13 | . 1 1 2 . . . . . 3 . . . . 1 3 . . 1 1 Disrupt 1 | . . . . . . . . . . . . . . . 1 . . . . Operators 1 | . . . . . . . . . . . . . . 1 . . . . . Sabotage 2 | . . . . . . . . . . . . . . . . . . 2 . Fabricators 7 | . . . . 1 . . . . 2 . . . . . . . . . 4 Liberate 1 | . . . . . . . . . . . . . . . . . . . 1 Fabnet 5 | . . . . 1 . . . . 2 . . . . . . . . . 2 Haulers 1 | . . . . . . . . . . . . . . . . . . . 1 Repair Stations . | . . . . . . . . . . . . . . . . . . . . Recycling Units 4 | . . 2 . 2 . . . . . . . . . . . . . . . Tunnel 4 | . . 2 . 2 . . . . . . . . . . . . . . . Scanalyzers 4 | . . . . . . . . . 3 . . . . 1 . . . . . Extract 4 | . . . . . . . . . 3 . . . . 1 . . . . . Garrison Access 2 | . . . . 1 . . . . . . . . . . . . . . 1 Jam 2 | . . . . 1 . . . . . . . . . . . . . . 1 Data Cores Recovered 3 | . . . 1 1 . . . . . . . . . . . . . 1 . Used 1 | . . . 1 . . . . . . . . . . . . . . . . Hacking Detections 62 | . 8 13 9 4 . . . . 11 . . . . 3 3 1 . 6 4 Full Trace Events 7 | . 2 . 1 1 . . . . 1 . . . . . . . . 2 . Feedback Events 1 | . 1 . . . . . . . . . . . . . . . . . . Corruption 1 | . 1 . . . . . . . . . . . . . . . . . . Feedback Blocked . | . . . . . . . . . . . . . . . . . . . . Robot Schematics Acquired 11 | . . 1 1 . . . 3 . . . . 6 . . . . . . . Robots Built 2 | . . . . . . . . . 2 . . . . . . . . . . Authchips . | . . . . . . . . . . . . . . . . . . . . Time 116 | . . . . . . . . . 116 . . . . . . . . . . Total Robot Build Rating 6 | . . . . . . . . . 6 . . . . . . . . . . Part Schematics Acquired 57 | . 1 1 1 . . . 21 . 15 . . 8 . 9 . . . . 1 Parts Built . | . . . . . . . . . . . . . . . . . . . . Authchips . | . . . . . . . . . . . . . . . . . . . . Time . | . . . . . . . . . . . . . . . . . . . . Total Part Build Rating . | . . . . . . . . . . . . . . . . . . . . Parts Repaired 2 | . . 2 . . . . . . . . . . . . . . . . . Time 64 | . . 64 . . . . . . . . . . . . . . . . . Parts Recycled . | . . . . . . . . . . . . . . . . . . . . Recycled Matter . | . . . . . . . . . . . . . . . . . . . . Retrieved Matter . | . . . . . . . . . . . . . . . . . . . . Retrieved Components 14 | . 1 10 . 3 . . . . . . . . . . . . . . . Parts Scanalyzed 3 | . . 1 1 . . . . . . . . . . . . . . . 1 Part Schematics Acquired 3 | . . 1 1 . . . . . . . . . . . . . . . 1 Parts Damaged . | . . . . . . . . . . . . . . . . . . . . Bothacking | -11 -10 -9 -8 -7 -7 -7 -7 -6 -6 -6 -6 -6 -5 -5 -5 -5 -5 -5 -4 ------------ Run | Scr Mat Mat Mat Fac Low Low Zio Pro Fac Low Low Dat Pro Fac Ext Cet Arc Hub Fac Used RIF Installer . | . . . . . . . . . . . . . . . . . . . . Robots Hacked 7 | . . . . . . . . . . . . . 1 1 4 . . . 1 Non-combat . | . . . . . . . . . . . . . . . . . . . . Combat 7 | . . . . . . . . . . . . . 1 1 4 . . . 1 Robot Hacks Applied . | . . . . . . . . . . . . . . . . . . . . Relay Couplers Released 4 | . . . . . . . . . . . . . . 1 . . . 3 . Machine Destruction 4 | . . . . . . . . . . . . . . 1 . . . 3 . Fabnet Peak Effective % 4 | . . . . . . . . 3 3 3 3 3 4 4 4 4 4 4 1 Autooverrided 7 | . . . . . . . . . . . . . 1 1 4 . . . 1 Robots Rewired 8 | . . . . . . . . . . 2 . . . . 6 . . . . Allies Hacked . | . . . . . . . . . . . . . . . . . . . . Hacks Repelled . | . . . . . . . . . . . . . . . . . . . . Allies | -11 -10 -9 -8 -7 -7 -7 -7 -6 -6 -6 -6 -6 -5 -5 -5 -5 -5 -5 -4 -------- Run | Scr Mat Mat Mat Fac Low Low Zio Pro Fac Low Low Dat Pro Fac Ext Cet Arc Hub Fac Total Allies 25 | . . . . . . . . . 2 2 . . 2 1 17 . . . 1 Largest Group 10 | . . . . . . . . . 2 3 3 . 1 2 10 10 4 . 1 Highest-Rated Group 384 | . . . . . . . . . 42 73 73 . 96 140 384 370 199 . 12 Highest-Rated Ally 159 | . . . . . . . . . 21 32 32 . 96 96 159 136 121 . 12 Total Orders 9 | . . . . . . . . . 1 4 . . . 3 . 1 . . . STAY 3 | . . . . . . . . . . 2 . . . . . 1 . . . FOLLOW 2 | . . . . . . . . . . 2 . . . . . . . . . RETURN 4 | . . . . . . . . . 1 . . . . 3 . . . . . Ally Attacks 303 | . . . . . . . . . 20 9 27 . 10 25 104 103 1 . 4 Total Damage 7395 | . . . . . . . . . 392 204 881 . 340 846 2496 2188 20 . 28 Kills 53 | . . . . . . . . . 3 4 6 . 1 8 16 15 . . . Allies Corrupted . | . . . . . . . . . . . . . . . . . . . . Allies Melted . | . . . . . . . . . . . . . . . . . . . . Intel | -11 -10 -9 -8 -7 -7 -7 -7 -6 -6 -6 -6 -6 -5 -5 -5 -5 -5 -5 -4 ------- Run | Scr Mat Mat Mat Fac Low Low Zio Pro Fac Low Low Dat Pro Fac Ext Cet Arc Hub Fac Robot Analysis Total 3 | . . 2 1 . . . . . . . . . . . . . . . . Derelict Logs Recovered 9 | . . . . . 1 2 . 1 . 1 3 . 1 . . . . . . Drone Launches 4 | . . . . . . . . . 1 . . . . 3 . . . . . Drone Recoveries 4 | . . . . . . . . . 1 . . . . 3 . . . . . Exploration | -11 -10 -9 -8 -7 -7 -7 -7 -6 -6 -6 -6 -6 -5 -5 -5 -5 -5 -5 -4 ------------- Run | Scr Mat Mat Mat Fac Low Low Zio Pro Fac Low Low Dat Pro Fac Ext Cet Arc Hub Fac Turns Passed 23155 | 106 1183 2907 1645 1615 831 564 2495 531 1909 1207 1325 152 671 1353 1704 364 618 1243 732 Spaces Moved 11991 | 51 565 1469 769 736 471 300 1505 235 963 623 742 92 378 650 893 176 258 479 636 Core 512 | 4 . . . . . . . . . . . . . . . . . . 508 Treads 10389 | . 446 545 769 736 471 300 1505 235 963 623 742 92 378 650 893 176 258 479 128 Legs 1090 | 47 119 924 . . . . . . . . . . . . . . . . . Wheels . | . . . . . . . . . . . . . . . . . . . . Hover . | . . . . . . . . . . . . . . . . . . . . Flight . | . . . . . . . . . . . . . . . . . . . . Fastest Speed 50 | 50 120 120 158 158 160 160 163 163 163 163 160 160 160 160 160 160 160 160 50 Average Speed 156 | 114 159 155 163 162 160 161 163 163 163 169 160 160 160 160 160 160 160 160 76 Slowest Speed 260 | 120 260 190 243 166 160 163 163 163 163 243 163 160 160 160 160 160 160 240 250 Overloaded Moves . | . . . . . . . . . . . . . . . . . . . . Propulsion Burnouts . | . . . . . . . . . . . . . . . . . . . . Robots Hopped . | . . . . . . . . . . . . . . . . . . . . Cave-ins Triggered . | . . . . . . . . . . . . . . . . . . . . Exploration Rate (%) 56 | 4 84 94 55 23 67 42 89 37 29 55 81 68 58 23 94 71 88 39 21 Regions Visited 19 Branch Regions 12 Pre-discovered Areas 10 | . . 2 . 2 . 1 2 . . . 2 1 . . . . . . . Known Exits Taken 4 | . . . . 1 . . . . 1 . . . . 1 . . . 1 . Unknown Exits Taken 15 | 1 1 1 1 . 1 1 1 1 . 1 1 1 1 . 1 1 1 . . Scrap Searched 17 | . . . . . 3 2 5 2 . . 3 . 2 . . . . . . Spaces Dug 33 | . . . . . . 3 . 4 7 5 1 . . 5 . . . 4 4 Terrain Destroyed 480 | . . 35 . 4 . 6 . 8 46 8 4 . . 14 4 8 20 233 90 Melee 8 | . . . . . . 3 . . . . . . . 5 . . . . . Projectile 163 | . . . . . . 3 . 8 25 8 4 . . . 4 2 20 67 22 AOE 308 | . . 35 . 4 . . . . 21 . . . . 9 . 6 . 165 68 Terrain Rammed . | . . . . . . . . . . . . . . . . . . . . Walls Destroyed . | . . . . . . . . . . . . . . . . . . . . Machines Disabled . | . . . . . . . . . . . . . . . . . . . . Actions | -11 -10 -9 -8 -7 -7 -7 -7 -6 -6 -6 -6 -6 -5 -5 -5 -5 -5 -5 -4 --------- Run | Scr Mat Mat Mat Fac Low Low Zio Pro Fac Low Low Dat Pro Fac Ext Cet Arc Hub Fac Total 14647 | 73 728 1828 953 952 508 360 1548 372 1148 738 841 97 427 844 1059 231 407 733 800 Wait 941 | . 32 105 28 40 2 38 26 127 46 75 51 . 38 65 10 13 103 87 55 Move 11972 | 50 564 1468 768 735 470 299 1504 234 962 622 741 91 377 649 892 175 257 478 636 Hop . | . . . . . . . . . . . . . . . . . . . . Pick Up 139 | 5 25 24 15 9 2 4 5 . 7 2 4 . . 10 2 7 1 9 8 Fast Attach 103 | 7 2 14 7 8 5 . 3 . 6 . 1 3 . 7 5 2 4 18 11 Attach 63 | . 1 9 7 7 2 2 . . 4 1 1 . . 4 . 1 . 3 21 Detach 17 | . . 3 3 1 . . . . 1 . . . . . . . . 2 7 Swap 160 | . 12 19 9 12 1 4 2 . 14 6 14 . 2 22 14 5 6 17 1 Drop 216 | . 25 39 23 18 7 3 7 . 15 1 9 3 . 21 11 9 5 16 4 Fire 934 | 11 65 146 93 121 19 7 1 11 91 24 20 . 10 55 55 19 31 103 52 Melee 12 | . . . . . . 3 . . . . . . . 9 . . . . . Ram 5 | . . . . . . . . . . . . . . . . . . . 5 Kick . | . . . . . . . . . . . . . . . . . . . . Crush 9 | . 2 1 . 1 . . . . 2 . . . . 2 1 . . . . Escape Stasis . | . . . . . . . . . . . . . . . . . . . . Rewire 76 | . . . . . . . . . . 7 . . . . 69 . . . . Trap . | . . . . . . . . . . . . . . . . . . . . Miscellaneous . | . . . . . . . . . . . . . . . . . . . . Route ------- -11/Scrapyard -10/Materials (discovered 5 exits: *Mat x3 / [*Min x2]) -9/Materials (discovered 4 exits: *Mat x3 / *Min) -8/Materials (discovered 2 exits: *Fac x2) -7/Factory (discovered 3 exits: *Fac x2 / *Low) -7/Lower Caves -7/Lower Caves (discovered 2 exits: *Fac / *Zio) -7/Zion (discovered 2 exits: [Dee] / [*Pro]) -6/Proximity Caves -6/Factory (discovered 3 exits: Fac / *Low x2) -6/Lower Caves -6/Lower Caves (discovered 2 exits: *Fac / *Dat) -6/Data Miner -5/Proximity Caves -5/Factory (discovered 8 exits: *Fac x4 / Upp x2 / *Ext x2) -5/Extension (discovered 2 exits: *Fac / *Cet) -5/Cetus (discovered 2 exits: *Fac / [*Arc]) -5/Archives (discovered 3 exits: *Fac / *Hub x2) -5/Hub_04(d) (discovered 4 exits: *Fac x4) -4/Factory (discovered 2 exits: Upp x2) History --------- Turn | Location | Event 32 | -11/Scrapyard | Discovered new exit (range 13) 107 | -11/Scrapyard | Entered Materials 302 | -10/Materials | Build established: Mutant 407 | -10/Materials | Discovered new exit (range 6) 621 | -10/Materials | Discovered new exit (range 15) 905 | -10/Materials | Discovered new exit (range 5) 1050 | -10/Materials | Discovered new exit (range 19) 1050 | -10/Materials | Discovered new exit (range 17) 1050 | -10/Materials | Central database locked down 1290 | -10/Materials | Entered another Materials area 1290 | -9/Materials | Evolved 2 slots: Propulsion x1, Utility x1 1507 | -9/Materials | Discovered new exit (range 14) 1643 | -9/Materials | Repaired Imp. Aluminum Leg 1675 | -9/Materials | Repaired Imp. Aluminum Leg 1962 | -9/Materials | Discovered new exit (range 10) 2173 | -9/Materials | Identified exit to Mines 2586 | -9/Materials | Discovered new exit (range 15) 3293 | -9/Materials | Discovered new exit (range 12) 3459 | -9/Materials | Build established: Scavenger-Mutant 3690 | -9/Materials | First assault squad dispatched 3732 | -9/Materials | Core integrity fell below 50% 4197 | -9/Materials | Entered another Materials area 4197 | -8/Materials | Evolved 2 slots: Utility x1, Weapon x1 4509 | -8/Materials | Build established: Tank 4714 | -8/Materials | Discovered new exit (range 3) 5339 | -8/Materials | Discovered new exit (range 9) 5842 | -8/Materials | Entered Factory 5842 | -7/Factory | Evolved 2 slots: Power x1, Utility x1 6127 | -7/Factory | Discovered new exit (range 11) 6242 | -7/Factory | First assault squad dispatched 6550 | -7/Factory | Discovered new exit (range 15) 6826 | -7/Factory | Discovered new exit (range 15) 6837 | -7/Factory | Build established: Scavenger-Gunner 6977 | -7/Factory | Garrison activated, responded to threat 7454 | -7/Factory | Identified exit to Lower Caves 7457 | -7/Factory | Entered Lower Caves 7759 | -7/Lower Caves | Build established: Tank 7850 | -7/Lower Caves | Learned Factory terminal intel 8081 | -7/Lower Caves | Discovered new exit (range 9) 8193 | -7/Lower Caves | Encountered a Warlord checkpoint 8288 | -7/Lower Caves | Entered another Lower Caves area 8303 | -7/Lower Caves | Discovered new exit (range 14) 8309 | -7/Lower Caves | Learned Factory emergency access door positions 8495 | -7/Lower Caves | Learned location of Zion (-7) 8817 | -7/Lower Caves | Discovered new exit (range 15) 8852 | -7/Lower Caves | Entered Zion 8971 | -7/Zion | Build established: Mutant 9052 | -7/Zion | Discovered new exit (range 11) 9138 | -7/Zion | Learned location of Warlord (-5) 9207 | -7/Zion | Given the Hacking Drone Bay 9446 | -7/Zion | Discovered new exit (range 14) 9487 | -7/Zion | Visited the Megawrench Repair Shop 10963 | -7/Zion | Found Prototype Device 11086 | -7/Zion | Megawrench repaired 9 parts 11347 | -7/Zion | Entered Proximity Caves 11588 | -6/Proximity Caves | Learned Factory stockpile data 11670 | -6/Proximity Caves | Received a Behemoth hack from an annoying Tinkerer 11672 | -6/Proximity Caves | Discovered new exit (range 13) 11878 | -6/Proximity Caves | Entered Factory 11878 | -6/Factory | Evolved 2 slots: Utility x2 11881 | -6/Factory | Loaded intel: 26 terminal locations 12023 | -6/Factory | Discovered new exit (range 20) 12598 | -6/Factory | Identified Hacking Drone Bay 13013 | -6/Factory | Identified exit to Lower Caves 13101 | -6/Factory | Fabricated H-55 Commando? 13304 | -6/Factory | Build established: Gunner 13787 | -6/Factory | Entered Lower Caves 13787 | -6/Lower Caves | Accompanied by 1 ally 14020 | -6/Lower Caves | Learned Factory stockpile data 14119 | -6/Lower Caves | Encountered a Warlord checkpoint 14387 | -6/Lower Caves | Attracted the attention of an 0b10 outpost 14707 | -6/Lower Caves | Discovered new exit (range 7) 14836 | -6/Lower Caves | Build established: Scavenger-Skirmisher 14994 | -6/Lower Caves | Entered another Lower Caves area 14994 | -6/Lower Caves | Accompanied by 3 allies 15111 | -6/Lower Caves | Discovered new exit (range 14) 15399 | -6/Lower Caves | Spotted B-75 Beast 15428 | -6/Lower Caves | Allies destroyed B-75 Beast 15519 | -6/Lower Caves | Discovered new exit (range 12) 15837 | -6/Lower Caves | Build established: Scavenger-Gunner 15850 | -6/Lower Caves | Learned location of 1 exit from Factory 16319 | -6/Lower Caves | Entered Data Miner 16321 | -6/Data Miner | Discovered new exit (range 6) 16351 | -6/Data Miner | Met Data Miner 16379 | -6/Data Miner | Learned location of Section 7 (-2) 16379 | -6/Data Miner | Acquired the access code to Warlord's prototype stash 16404 | -6/Data Miner | Received God Mode back door access code from Data Miner 16471 | -6/Data Miner | Entered Proximity Caves 16515 | -5/Proximity Caves | Learned location of 1 exit from Factory 16762 | -5/Proximity Caves | Escorted by Enhanced Grunt 16764 | -5/Proximity Caves | Attracted the attention of an 0b10 checkpoint 17113 | -5/Proximity Caves | Discovered new exit (range 13) 17142 | -5/Proximity Caves | Entered Factory 17142 | -5/Factory | Accompanied by 1 ally 17142 | -5/Factory | Evolved 2 slots: Propulsion x1, Utility x1 17143 | -5/Factory | Identified exit to Factory 17486 | -5/Factory | Build established: Scavenger-Tank 18036 | -5/Factory | Identified exit to Upper Caves 18036 | -5/Factory | Identified exit to Extension 18452 | -5/Factory | Build established: Tank 18495 | -5/Factory | Entered Extension 18506 | -5/Extension | Disrupted transfer network 18635 | -5/Extension | Rescued A7 18970 | -5/Extension | Rescued a captive Derelict 19324 | -5/Extension | Spotted B-75 Beast 19333 | -5/Extension | Destroyed B-75 Beast 19347 | -5/Extension | Local machine network offline 19347 | -5/Extension | Spotted B-75 Beast 19385 | -5/Extension | Allies destroyed B-75 Beast 19506 | -5/Extension | Found Prototype Protection 19506 | -5/Extension | Identified Med. Regenerative Plating 19570 | -5/Extension | Rescued a captive Derelict 19571 | -5/Extension | Rescued a captive Derelict 19689 | -5/Extension | Rescued a captive Derelict 19690 | -5/Extension | Rescued a captive Derelict 19712 | -5/Extension | Build established: Scavenger-Tank 19740 | -5/Extension | Rescued a captive Derelict 19949 | -5/Extension | Discovered exit to Factory (range 10) 19955 | -5/Extension | Discovered new exit (range 6) 20199 | -5/Extension | Entered Cetus 20199 | -5/Cetus | Accompanied by 10 allies (A7) 20204 | -5/Cetus | Acquired a Cetus Manufacturing Module code from A7 20220 | -5/Cetus | Spotted Cetus Guard 20220 | -5/Cetus | Spotted Cetus Guard 20223 | -5/Cetus | Spotted Cetus Guard 20224 | -5/Cetus | Spotted Cetus Guard 20234 | -5/Cetus | Allies destroyed Cetus Guard 20235 | -5/Cetus | Allies destroyed Cetus Guard 20238 | -5/Cetus | Allies destroyed Cetus Guard 20244 | -5/Cetus | Allies destroyed Cetus Guard 20302 | -5/Cetus | Cetus Manufacturing Module disabled 20343 | -5/Cetus | Escorted A7 to Cetus Mainframe 20360 | -5/Cetus | Discovered new exit (range 16) 20394 | -5/Cetus | Spotted Cetus Guard 20394 | -5/Cetus | Spotted Cetus Guard 20401 | -5/Cetus | Allies destroyed Cetus Guard 20401 | -5/Cetus | Spotted Cetus Guard 20402 | -5/Cetus | Spotted Cetus Guard 20416 | -5/Cetus | Allies destroyed Cetus Guard 20422 | -5/Cetus | Allies destroyed Cetus Guard 20430 | -5/Cetus | Destroyed Cetus Guard 20433 | -5/Cetus | Discovered exit to Factory (range 15) 20443 | -5/Cetus | Met Revision 17 20563 | -5/Cetus | Entered Archives 20563 | -5/Archives | Accompanied by 4 allies (A7) 20568 | -5/Archives | Received a hacking code to weaken MAIN.C 20678 | -5/Archives | Discovered new exit (range 15) 20700 | -5/Archives | Discovered new exit (range 16) 20719 | -5/Archives | Discovered exit to Factory (range 15) 20745 | -5/Archives | Build established: Scavenger-Gunner 20832 | -5/Archives | System corruption reached 10% 21181 | -5/Archives | Entered Hub_04(d) 21736 | -5/Hub_04(d) | Network Hub disabled 21836 | -5/Hub_04(d) | Incoming investigation squad redirected 21840 | -5/Hub_04(d) | Network Hub disabled 21860 | -5/Hub_04(d) | Incoming investigation squad redirected 22211 | -5/Hub_04(d) | Spotted Lightning 22217 | -5/Hub_04(d) | Spotted Lightning 22226 | -5/Hub_04(d) | Spotted Lightning 22244 | -5/Hub_04(d) | Destroyed Lightning 22252 | -5/Hub_04(d) | System corruption reached 30% 22265 | -5/Hub_04(d) | Destroyed Lightning 22286 | -5/Hub_04(d) | Destroyed 9 combat bots 22289 | -5/Hub_04(d) | Destroyed Lightning 22290 | -5/Hub_04(d) | Lost 5 parts (2n1u2w) 22315 | -5/Hub_04(d) | Found Prototype Processor 22315 | -5/Hub_04(d) | Identified Exp. Targeting Computer 22319 | -5/Hub_04(d) | Found Prototype Device 22319 | -5/Hub_04(d) | Identified Exp. Phase Shifter 22322 | -5/Hub_04(d) | Found Exp. Phase Shifter 22349 | -5/Hub_04(d) | Found Exp. Phase Shifter 22351 | -5/Hub_04(d) | Found Prototype Device 22351 | -5/Hub_04(d) | Identified Exp. EM Disruption Field 22381 | -5/Hub_04(d) | First assault squad dispatched 22395 | -5/Hub_04(d) | Found Prototype Energy Cannon 22395 | -5/Hub_04(d) | Identified EMDS 22402 | -5/Hub_04(d) | Incoming assault squad redirected 22404 | -5/Hub_04(d) | Network Hub disabled 22424 | -5/Hub_04(d) | Entered Factory 22424 | -4/Factory | Evolved 2 slots: Utility x2 22448 | -4/Factory | Lost 5 parts (1p3u1w) 22530 | -4/Factory | Build established: Scavenger-Mutant 22722 | -4/Factory | Lost 4 parts (1p3u) 22794 | -4/Factory | Released all parts (8) 22821 | -4/Factory | Lost 7 parts (1n3u3w) 22833 | -4/Factory | Incoming investigation squad redirected 22924 | -4/Factory | First assault squad dispatched 22948 | -4/Factory | Incoming assault squad redirected 22957 | -4/Factory | Found Prototype Hackware 22957 | -4/Factory | Identified Exp. Hacking Suite 22959 | -4/Factory | Core integrity fell below 50% 23005 | -4/Factory | Spotted B-86 Titan 23022 | -4/Factory | Core integrity fell below 20% 23057 | -4/Factory | Identified exit to Upper Caves 23073 | -4/Factory | Build established: Mutant 23156 | -4/Factory | Destroyed by H-77 Assassin with Coil Gun Last Messages --------------- 23129_ Penetrated by Slug. 23132_ Adv. Transmission Jammer destroyed. 23133_ Slug penetrates Y-64 Sentinel. 23133_ Penetrated by Slug. 23133_ Slug penetrates Wall. 23142_ Y-64 Sentinel destroyed. 23143_ Penetrated by Slug. 23145_ Y-64 Sentinel system terminally corrupted. 23145_ Adv. Heat Sink fried. 23146_ NEKJ%92TXKG7,1 JVX|I|FX L|X HSH2F3,AZN 23146_ Penetrated by Slug. 23153_ Slug penetrates Wall. 23153_ Penetrated by Slug. 23153_ Slug penetrates Wall. 23153_ Adv. EMP Blaster destroyed. 23155_ Slammed into H-77 Assassin. 23156_ Acquired 87 matter. 23156_ Slammed into H-77 Assassin. 23156_ Slug penetrates Wall. 23156_ Penetrated by Slug. Map ----- +----------------------------------------------------+ | ?????????????????????? # """ # "% % | | ????????????????????# = # """ + % | | ????????????????????# # ! """ # | | ????????????????????# # % # | | ?????????????>??????# # #% ##" | | ????????????????????# # "" """ ######### | | ????????????????????########### ""F""" #???????# | | ??????????????????????????????# """"" #???????# | | ??????????????????????????????##########???????# " | | ???????????????????????????????????????????????# " | | ????????????????????????????????????????????+??#?? | | ???????????????????????????????????????????? ????? | | ???????????????????????????????????????????# ????? | | ???????????????????????????????????????????# #???? | | ??????????????????????????????###########??# #???? | | ??????????????????????????????# #??# #???? | | ??????????????????????????????# """" ! #### ###?? | | ??????????????????????????????# """" ## ! ### | | ??????????????????????????????# """" ]## ^^ | | ??????????????????????????????# """" ## = ^^ | | ??????????????????????????????# ## ^^ | | ??????????????????????????????# ## ### | | ??????????????#########???????# ### ##?? | | ??????????????# #???????####+######?# #### | | ??????????????# ########## #????# | | ??????????????# * @h[! ###### #### | | ??????????????# [= h%[ #??? | | ??????????????# ! #######/##### | | ??????????????# ########## # | | ??????????????# #????????####### | | ??????????????#########??????????????# """"""""" | | ?????????????????????????????????????# | | ?????????????????????????????????????# ""T"" | | ?????????????????????????????????????# """"" | | ?????????????????????????????????????############# | | | | | | | | | | | | | | | | | | | | | | | | | | | | | | | +----------------------------------------------------+ Best States ------------- Heat Dissipation 69 Energy Generation 39 Energy Capacity 910 Matter Stores 321 Matter Capacity 400 Sight Range 16 Robot Scan Range 15 Terrain Scan Range 20 Terrain Scan Density 210 Jamming Range 16 Additional Mass Support 12 Armor Coverage 900 Resistance: KI 30 Weapon Shielding 66 Weapon Cycling 15 Phase Shifting 20 Evasion (%) 60 Targeting Accuracy 12 Core Analysis 6 Recoil Reduction 4 Kinecelleration 30 Salvage Targeting 1 Offensive Hacking 16 Item Schematics ----------------- Hcp. Storage Unit | -10/Materials | Hacked Hacking Suite | -9/Materials | Scanalyzed Hvy. Armor Plating | -8/Materials | Scanalyzed Remote Datajack | -7/Zion | Archive Imp. Carbon-fiber Leg | -7/Zion | Archive Mak. Flight Unit | -7/Zion | Archive Phase Cannon | -7/Zion | Archive Imp. Medium Armor Plating | -7/Zion | Archive Force Field | -7/Zion | Archive Mni. Drone Bay | -7/Zion | Archive Lrn. Missile Launcher | -7/Zion | Archive Adv. Heat Sink | -7/Zion | Archive Mak. Trap Scanner | -7/Zion | Archive Matter Compressor | -7/Zion | Archive Weapon Cycler | -7/Zion | Archive Nuclear Pulse Thruster | -7/Zion | Archive HERF Cannon | -7/Zion | Archive Tactical Coordination Suite | -7/Zion | Free Ripper | -7/Zion | Free Flamer | -7/Zion | Free Slug Cannon | -7/Zion | Free Battle Rifle | -7/Zion | Free Riot Gun | -7/Zion | Free Beamcaster | -7/Zion | Free Imp. Cooling System | -6/Factory | Extracted Imp. Trap Scanner | -6/Factory | Extracted Imp. Core Shielding | -6/Factory | Extracted Imp. Cryofiber Web | -6/Factory | Extracted System Restoration Module | -6/Factory | Extracted Energy Filter | -6/Factory | Extracted Arm. Leg | -6/Factory | Extracted Hrd. Light Armor Plating | -6/Factory | Extracted Imp. Terrain Scanner | -6/Factory | Extracted Cold Fusion Reactor | -6/Factory | Extracted Imp. Trap Extractor | -6/Factory | Extracted Imp. Gravmag System | -6/Factory | Extracted Imp. Proton Missile Launcher | -6/Factory | Extracted Flail | -6/Factory | Extracted Imp. Signal Interpreter | -6/Factory | Extracted Hardcell Cannon | -6/Data Miner | Free Adv. Hardlight Generator | -6/Data Miner | Free Imp. Gyrokinetic Inverter | -6/Data Miner | Free Kinetic Spear | -6/Data Miner | Free Prc. Matter Filter | -6/Data Miner | Free Cld. Nuclear Pulse Thruster | -6/Data Miner | Free Lgt. Regenerative Plating | -6/Data Miner | Free Combat Drone Bay | -6/Data Miner | Free Imp. Arc Projector | -5/Factory | Extracted Imp. Launcher Guidance Computer | -5/Factory | Extracted Weight Redist. System | -5/Factory | Extracted Variable Charge Gun | -5/Factory | Extracted Cld. Fission Core | -5/Factory | Extracted Enh. Optical Array | -5/Factory | Extracted Adv. Cooling System | -5/Factory | Extracted Exp. Heat Sink | -5/Factory | Extracted Imp. EM Pulse Cannon | -5/Factory | Extracted Centrium Medium Armor Plating | -4/Factory | Scanalyzed Robot Schematics ------------------ M-13 Machinist | -9/Materials | Hacked H-55 Commando | -8/Materials | Hacked S-27 Virus | -7/Zion | Archive L-31 Rogue | -7/Zion | Archive Y-54 Guardian | -7/Zion | Archive B-60 Warrior | -6/Data Miner | Free H-77 Assassin | -6/Data Miner | Free M-30 Cleanser | -6/Data Miner | Free A-15 Conveyor | -6/Data Miner | Free Y-64 Sentinel | -6/Data Miner | Free L-41 Fighter | -6/Data Miner | Free Fabricated ------------ H-55 Commando | x2 | -6/Factory Alien Tech Used ----------------- None Achievements -------------- None Challenges ------------ None Game ------ Seed LightningHellfireCoupler Manual? 0 Play Time 02:21:57 Cumulative 583.7 hours Start 2022.04.06 @ 20:32:52 End 2022.04.07 @ 21:01:25 Sessions 5 Manual Loads 0 Difficulty Rogue Special Mode None Game No. 367 Rogue 367 Adventurer 0 Explorer 0 Win Type - Total 7 Types 5/0/1/0/1/0/0/0/0 Lore% 85 Gallery% 86 Achievement% 74 Wizard Run 0 Options --------- ASCII 0 Keyboard 0 Movement Mouse Keybinds 1 Fullscreen 2 Font 24/Smallcaps Map View 68x50 Tactical HUD 1 Map Filters NONE Filters NONE Steam 1 RUN: 1f57a291-1119-4e31-a837-c666251151ea